Cogmind - Beta 13 @@@ ROGUE MODE // 2024.04.19 @ 09:14:29 Player: Gabe+Kate4EVR Result: Destroyed by Y-45 Defender with Heavy Assault Rifle Performance ------------- Evolutions (2) 1000 Regions Visited (5) 1000 Robots Destroyed (125) 625 Value Destroyed (4142) 4142 Prototype IDs (8) 160 Alien Tech Used (0) 0 Bonus (942) 942 TOTAL SCORE: 7869 Bonus ------- High Alert Combat Kills 552 Follower Combat Kills 299 Entered Garrisons 200 Friendly Fire -109 Cogmind --------- Core Integrity 0/550 Matter 238/300 Energy 280/280 System Corruption 6% Temperature Cool (9) Movement Walking (183) Ox1 Location -8/Garrison Parts ------- > --- POWER (1) -------- Cooled Ion Engine > --- PROPULSION (3) --- Improved Aluminum Leg VSS Leg VSS Leg > --- UTILITY (5) ------ Large Storage Unit Target Analyzer Reaction Control System Thermal Shield Hacking Suite > --- WEAPON (2) ------- Flak Gun Flak Gun > --- INVENTORY (15) --- Deuterium Engine Aluminum Leg Aluminum Leg VSS Leg Improved Heat Sink Compact Matter Pod (150) Terrain Scan Processor Thermal Shield Relay Coupler [NC] (24) Gauss Rifle Flak Gun Improved Light Cannon Rocket Launcher Precision Rocket Launcher Remote Datajack Peak State ------------ > --- POWER ------------ Cooled Ion Engine > --- PROPULSION ------- Carbon-fiber Leg Carbon-fiber Leg Carbon-fiber Leg > --- UTILITY ---------- Large Storage Unit Target Analyzer Reaction Control System Reflective Plating Hacking Suite > --- WEAPON ----------- Gauss Rifle Precision Rocket Launcher > --- INVENTORY -------- Deuterium Engine Aluminum Leg Carbon-fiber Leg Improved Heat Sink Compact Matter Pod Terrain Scan Processor Reaction Control System Reflective Plating Minigun Enhanced Autogun Enhanced Autogun Improved Light Cannon Rocket Launcher Rocket Launcher Rocket Launcher [Rating: 39] Favorites ----------- Power Deuterium Engine Engine Deuterium Engine Power Core Nuclear Core Propulsion VSS Leg Leg VSS Leg Hover Unit Hover Unit Flight Unit Improved VTOL Module Utility Terrain Scan Processor Device Improved Terrain Scanner Storage Small Storage Unit Processor Terrain Scan Processor Hackware Hacking Suite Protection Hardened Medium Armor Plating Weapon High-powered Shotgun Energy Gun Field Laser Energy Cannon Advanced Beam Cannon Ballistic Gun High-powered Shotgun Ballistic Cannon Flak Cannon Launcher Mini Grenade Launcher Build | -11 -10 -9 -8 -8 -8 ------- Run | Yrd Mat Mat Mat Sto Gar Slots Evolved 4 | . . 2 2 . . Power . | . . . . . . Propulsion 1 | . . 1 . . . Utility 3 | . . 1 2 . . Weapon . | . . . . . . Parts Attached 148 | 6 6 27 35 38 36 Power 14 | 1 . 2 3 8 . Engine 10 | 1 . 2 2 5 . Core 4 | . . . 1 3 . Reactor . | . . . . . . Propulsion 44 | 2 2 10 9 7 14 Treads . | . . . . . . Leg 35 | 2 . 6 6 7 14 Wheel . | . . . . . . Hover 7 | . 2 4 1 . . Flight 2 | . . . 2 . . Utility 42 | 1 4 6 11 12 8 Device 24 | . 2 4 7 5 6 Storage 3 | 1 1 . . 1 . Processor 6 | . 1 2 1 2 . Hackware 2 | . . . . 2 . Protection 7 | . . . 3 2 2 Artifact . | . . . . . . Weapon 48 | 2 . 9 12 11 14 Energy Gun 5 | . . . 3 2 . Energy Cannon 2 | . . 2 . . . Ballistic Gun 31 | 2 . 2 8 6 13 Ballistic Cannon 6 | . . 5 . 1 . Launcher 4 | . . . 1 2 1 Special Weapon . | . . . . . . Impact Weapon . | . . . . . . Slashing Weapon . | . . . . . . Piercing Weapon . | . . . . . . Special Melee Weapon . | . . . . . . Unidentified Prototypes 8 | . . 2 3 3 . Parts Lost 19 | . . 1 8 5 5 Power 1 | . . . . 1 . Propulsion 5 | . . 1 2 . 2 Utility 8 | . . . 4 2 2 Weapon 5 | . . . 2 2 1 Highest Loss Streak 3 | . . 1 3 1 3 To Critical Strikes . | . . . . . . Average Slot Usage (%) 98 | . 88 99 98 99 97 Engine 8 | . 14 11 7 7 9 Leg 24 | . 10 18 26 27 25 Hover 3 | . 16 14 . . . Device 14 | . 3 11 15 13 15 Storage 9 | . 15 11 9 9 9 Processor 11 | . . 9 15 11 9 Hackware 2 | . . . . 4 9 Protection 2 | . . . 3 5 1 Energy Gun 1 | . . . . 5 . Ballistic Gun 14 | . 28 6 17 12 17 Ballistic Cannon 2 | . . 13 . . . Naked Turns . | . . . . . . Heaviest Build 45 | 13 17 26 33 39 45 Greatest Support 45 | 20 20 36 39 40 45 Greatest Overweight (x) 7 | . 4 1 7 . 2 Average Overweight (x) . | . . . . . . Largest Inventory Capacity 15 | 8 8 8 8 15 15 Average Capacity 10 | 7 8 8 8 12 15 Most Carried 15 | 1 8 8 8 15 15 Average Carried 9 | . 5 7 7 12 14 Final Capacity 15 | 8 8 8 8 15 15 Final Carried 15 | 1 8 8 8 13 15 Class Distribution -------------------- 72% | Mutant 24% | Scavenger-Mutant 3% | Commander-Mutant Dominant Class ---------------- Mutant | -10/Materials Mutant | -9/Materials Mutant | -8/Materials Scavenger-Mutant | -8/Storage Scavenger-Mutant | -8/Garrison Resources | -11 -10 -9 -8 -8 -8 ----------- Run | Yrd Mat Mat Mat Sto Gar Matter Collected 4408 | 202 64 915 1042 1104 1081 Remotely . | . . . . . . Salvage Created 4274 | . 91 688 862 1842 791 Parts 268 | . 5 57 54 109 43 Haulers Intercepted 10 | . 1 3 3 3 . Recyclers Shooed 4 | . 1 . 1 2 . Parts Field Recycled . | . . . . . . Retrieved Matter . | . . . . . . Parts Self-Destructed . | . . . . . . Prevented . | . . . . . . Kills | -11 -10 -9 -8 -8 -8 ------- Run | Yrd Mat Mat Mat Sto Gar Combat Hostiles Destroyed 91 | . . 17 21 31 22 Guns 79 | . . 5 21 31 22 Cannons 12 | . . 12 . . . Classes Destroyed 16 | . 3 6 3 2 2 Worker 3 | . 1 . 1 1 . Builder 4 | . . 1 1 2 . Tunneler 7 | . 1 3 3 . . Hauler 10 | . 1 3 3 3 . Recycler 4 | . . 1 . 3 . Mechanic 1 | . . . 1 . . Operator 2 | . . . . 2 . Watcher 2 | . . 1 . 1 . Swarmer 19 | . . 7 4 4 4 Saboteur 2 | . . . . . 2 Grunt 43 | . . 6 12 18 7 Brawler 2 | . . . 1 . 1 Duelist 3 | . . . 2 . 1 Sentry 18 | . . 4 2 8 4 Hunter 2 | . . . . 1 1 Programmer 3 | . . . . . 3 Best Kill Streak 11 | . 2 5 4 11 5 Combat Bots Only 8 | . . 5 4 8 5 Max Kills in Single Turn 2 | . 1 2 1 2 1 Gunslinging 1 | . . . . 1 . Exploded . | . . . . . . Melee . | . . . . . . Uniques/NPCs Destroyed . | . . . . . . Combat | -11 -10 -9 -8 -8 -8 -------- Run | Yrd Mat Mat Mat Sto Gar Hostile Shots Fired 436 | . . 61 94 168 113 Missed 114 | . . 14 22 47 31 Damage Taken 4691 | . . 462 1235 1869 1125 Core 622 | . . 60 189 244 129 Absorbed by Shields . | . . . . . . Redirected to Shielding 54 | . . . . 54 . Ignored by Resistances 34 | . . . . . 34 Regen/Repaired (Parts) 39 | . . . . 39 . Core Remaining (%) 95 | 100 100 85 . . . Volleys Fired 319 | . 10 49 76 122 62 Largest 2 | . 2 2 2 2 2 Hottest 112 | . 40 112 88 88 56 Shots Fired 622 | . 20 94 152 232 124 Gun 552 | . 20 32 151 228 121 Cannon 65 | . . 62 . 3 . Launcher 5 | . . . 1 1 3 Special . | . . . . . . Kinetic 524 | . 20 80 147 156 121 Thermal 92 | . . 14 3 75 . Explosive 5 | . . . 1 1 3 Electromagnetic 1 | . . . 1 . . Robot Hit Streak 13 | . 5 7 13 12 10 Robot Miss Streak 18 | . 2 18 6 5 13 Penetration Max . | . . . . . . Secondary Targets 11 | . . 1 2 5 3 Max Gunslinging Chain 1 | . . 1 1 1 1 Shots Hit Robots 430 | . 12 62 115 150 91 Core Hits 291 | . 5 61 64 85 76 Critical Kills 3 | . . . . 1 2 Critical Parts Destroyed 7 | . . . 1 3 3 Critical Strikes 12 | . . . 1 6 5 Burn 2 | . . . . 2 . Destroy 10 | . . . 1 4 5 Melee Attacks . | . . . . . . Impact . | . . . . . . Slashing . | . . . . . . Piercing . | . . . . . . Sneak Attacks . | . . . . . . Combat Hostiles . | . . . . . . Follow-up Attacks . | . . . . . . Damage Inflicted 7931 | . 131 1073 2255 2855 1617 Guns 7057 | . 131 252 2255 2809 1610 Cannons 821 | . . 821 . . . Explosions 46 | . . . . 46 . Melee . | . . . . . . Ramming 7 | . . . . . 7 Kinetic 6984 | . 131 952 2238 2053 1610 Thermal 894 | . . 121 17 756 . Explosive 46 | . . . . 46 . Electromagnetic . | . . . . . . Impact . | . . . . . . Slashing . | . . . . . . Piercing . | . . . . . . Highest Corruption 6 | . . . 3 6 6 Average Corruption 5 | . . . 3 5 6 Corruption Purged . | . . . . . . Corruption Blocked . | . . . . . . Effects 118 | . . . 26 44 48 Message Errors 24 | . . . 3 12 9 Matter Fused 29 | . . . 9 9 11 Heat Flow Errors 17 | . . . 5 6 6 Energy Discharges 12 | . . . 2 7 3 Parts Rejected 1 | . . . . . 1 Parts Fused 2 | . . . 1 1 . Data Loss (minor) 9 | . . . 1 4 4 Data Loss (major) 7 | . . . . 1 6 Misfires 10 | . . . 4 1 5 Alerts 3 | . . . . 1 2 Weapon Failures 4 | . . . 1 2 1 Overload Shots . | . . . . . . Overflow Damage 16 | . . . . 16 . Projectiles . | . . . . . . Explosions 16 | . . . . 16 . Melee . | . . . . . . Knockbacks 24 | . . 24 . . . Impact . | . . . . . . Kinetic 20 | . . 20 . . . Secondary 4 | . . 4 . . . Self-Inflicted Damage 134 | . . . 113 21 . Shots 2 | . . . 1 1 . Rammed . | . . . . . . Targets Rammed 3 | . . . . . 3 Kicked 3 | . . . . . 3 Crushed . | . . . . . . Highest Temperature 583 | . 8 583 239 246 272 Average Temperature 97 | . 4 159 66 82 81 Received Heat Transfer 1890 | . . 135 603 828 324 Effects 13 | . . 12 . 1 . Shutdowns 2 | . . 2 . . . Energy Bleed 2 | . . 2 . . . Interference 1 | . . . . 1 . Matter Decay 2 | . . 2 . . . Short Circuit 2 | . . 2 . . . Damage (minor) 1 | . . 1 . . . Damage (major) 3 | . . 3 . . . Siege Activations . | . . . . . . Robots Corrupted . | . . . . . . Combat Hostiles . | . . . . . . Parts Fried . | . . . . . . Impact Corruptions . | . . . . . . Robots Melted . | . . . . . . Combat Hostiles . | . . . . . . Parts Melted 1 | . . . . 1 . Heat Transferred 2072 | . . 222 37 1813 . Parts Sabotaged . | . . . . . . Parts Stolen . | . . . . . . Parts Stripped . | . . . . . . Power Chain Reactions . | . . . . . . Alert | -11 -10 -9 -8 -8 -8 ------- Run | Yrd Mat Mat Mat Sto Gar Peak Influence 1340 | . 25 234 308 676 1340 Initial 439 | . . 10 68 87 439 Average 302 | . 12 106 101 313 917 Maximum Alert Level 4 | . . 1 1 2 4 Low Security (%) 59 | 100 100 94 81 34 . Level 1 13 | . . 5 18 27 . Level 2 12 | . . . . 37 22 Level 3 9 | . . . . . 47 Level 4 5 | . . . . . 29 Level 5 . | . . . . . . High Security . | . . . . . . Max Security . | . . . . . . Squads Dispatched 10 | . . 1 3 6 . Investigation 5 | . . . 2 3 . Extermination . | . . . . . . Reinforcement 4 | . . 1 1 2 . Assault . | . . . . . . Garrison 1 | . . . . 1 . Intercept . | . . . . . . Searches Triggered . | . . . . . . Construction Impeded . | . . . . . . Haulers Reinforced . | . . . . . . Active Scanning Responses . | . . . . . . Cargo Convoy Interrupts . | . . . . . . Stealth | -11 -10 -9 -8 -8 -8 --------- Run | Yrd Mat Mat Mat Sto Gar Distress Signals 2 | . . 1 1 . . Communications Jammed . | . . . . . . Distress Signals . | . . . . . . Times Spotted 127 | . . 24 32 36 35 Peak Tracking Total 6 | . . 6 4 5 5 Tactical Retreats 8 | . . . 4 1 3 Traps | -11 -10 -9 -8 -8 -8 ------- Run | Yrd Mat Mat Mat Sto Gar Traps Triggered 9 | . . . 2 3 4 Indirectly . | . . . . . . Trap Hack Attempts . | . . . . . . Triggered . | . . . . . . Disarmed . | . . . . . . Reprogrammed . | . . . . . . Reused . | . . . . . . Traps Extracted . | . . . . . . Installed . | . . . . . . Triggered . | . . . . . . Machines | -11 -10 -9 -8 -8 -8 ---------- Run | Yrd Mat Mat Mat Sto Gar Machines Disabled 9 | . . 1 2 3 3 Max in Single Turn 2 | . . 1 2 1 1 Garrison Relay 1 | . . . . . 1 Phase Generator 1 | . . . . . 1 Machines Repaired . | . . . . . . Machines Dismantled . | . . . . . . Machines Sabotaged . | . . . . . . Overloaded Fab Kills . | . . . . . . Hacking | -11 -10 -9 -8 -8 -8 --------- Run | Yrd Mat Mat Mat Sto Gar Machines Accessed 16 | . 1 . 5 8 2 Terminals 13 | . 1 . 4 6 2 Fabricators . | . . . . . . Repair Stations 1 | . . . . 1 . Recycling Units 1 | . . . 1 . . Scanalyzers . | . . . . . . Garrison Access 1 | . . . . 1 . Total Hacks 33 | . 2 . 8 19 4 Successful 14 | . 1 . 5 6 2 Failed 19 | . 1 . 3 13 2 Catastrophic 2 | . . . 1 1 . Database Lockouts . | . . . . . . Manual 11 | . 2 . 5 4 . Terminals 27 | . 2 . 6 15 4 Fabricators . | . . . . . . Repair Stations 3 | . . . . 3 . Recycling Units 2 | . . . 2 . . Scanalyzers . | . . . . . . Garrison Access 1 | . . . . 1 . Terminal Hacks 9 | . 1 . 3 3 2 Open Door 4 | . . . . 3 1 Branch Access Points 2 | . 1 . 1 . . Alert Level 1 | . . . 1 . . Unreport Threat 1 | . . . 1 . . Security Stations 1 | . . . . . 1 Fabricator Hacks . | . . . . . . Repair Station Hacks 2 | . . . . 2 . Scan Component 1 | . . . . 1 . Repair 1 | . . . . 1 . Recycling Unit Hacks 2 | . . . 2 . . Retrieve Components 2 | . . . 2 . . Scanalyzer . | . . . . . . Garrison Access Hacks 1 | . . . . 1 . Unlock Access 1 | . . . . 1 . Unauthorized Hacks . | . . . . . . Terminals . | . . . . . . Fabricators . | . . . . . . Repair Stations . | . . . . . . Recycling Units . | . . . . . . Scanalyzers . | . . . . . . Garrison Access . | . . . . . . Data Cores Recovered 1 | . . . . 1 . Used . | . . . . . . Hacking Detections 11 | . 1 . 3 5 2 Full Trace Events 4 | . . . 1 3 . Feedback Events 1 | . . . . 1 . Corruption 1 | . . . . 1 . Feedback Blocked . | . . . . . . Robot Schematics Acquired . | . . . . . . Robots Built . | . . . . . . Authchips . | . . . . . . Time . | . . . . . . Total Robot Build Rating . | . . . . . . Part Schematics Acquired . | . . . . . . Parts Built . | . . . . . . Authchips . | . . . . . . Time . | . . . . . . Total Part Build Rating . | . . . . . . Parts Repaired 1 | . . . . 1 . Time 32 | . . . . 32 . Parts Recycled . | . . . . . . Recycled Matter . | . . . . . . Retrieved Matter . | . . . . . . Retrieved Components 10 | . . . 10 . . Parts Scanalyzed . | . . . . . . Part Schematics Acquired . | . . . . . . Parts Damaged . | . . . . . . Bothacking | -11 -10 -9 -8 -8 -8 ------------ Run | Yrd Mat Mat Mat Sto Gar Used RIF Installer . | . . . . . . Robots Hacked . | . . . . . . Non-combat . | . . . . . . Combat . | . . . . . . Robot Hacks Applied . | . . . . . . Relay Couplers Released 4 | . . . . . 4 Machine Destruction 4 | . . . . . 4 Fabnet Peak Effective % . | . . . . . . Robots Rewired 8 | . . . . . 8 Allies Hacked . | . . . . . . Hacks Repelled . | . . . . . . Allies | -11 -10 -9 -8 -8 -8 -------- Run | Yrd Mat Mat Mat Sto Gar Total Allies 10 | . . . . . 10 Largest Group 5 | . . . . . 5 Highest-Rated Group 72 | . . . . . 72 Highest-Rated Ally 39 | . . . . . 39 Total Orders . | . . . . . . Ally Attacks 45 | . . . . . 45 Total Damage 940 | . . . . . 940 Kills 11 | . . . . . 11 Allies Corrupted . | . . . . . . Allies Melted . | . . . . . . Intel | -11 -10 -9 -8 -8 -8 ------- Run | Yrd Mat Mat Mat Sto Gar Robot Analysis Total . | . . . . . . Derelict Logs Recovered . | . . . . . . Drone Launches . | . . . . . . Drone Recoveries . | . . . . . . Exploration | -11 -10 -9 -8 -8 -8 ------------- Run | Yrd Mat Mat Mat Sto Gar Turns Passed 7229 | 49 253 1406 2629 1466 1426 Spaces Moved 3302 | 34 175 797 850 764 682 Core 4 | 2 1 . 1 . . Treads . | . . . . . . Legs 2960 | 32 62 571 849 764 682 Wheels . | . . . . . . Hover 338 | . 112 226 . . . Flight . | . . . . . . Fastest Speed 50 | 50 116 52 90 110 120 Average Speed 123 | 115 118 113 120 115 150 Slowest Speed 400 | 120 250 180 400 120 260 Overloaded Moves . | . . . . . . Propulsion Burnouts . | . . . . . . Robots Hopped . | . . . . . . Cave-ins Triggered . | . . . . . . Exploration Rate (%) 37 | 5 24 38 35 72 53 Regions Visited 5 Branch Regions 1 Pre-discovered Areas . | . . . . . . Known Exits Taken 2 | . . . 1 1 . Unknown Exits Taken 3 | 1 1 1 . . . Scrap Searched . | . . . . . . Spaces Dug . | . . . . . . Terrain Destroyed 123 | . . . 16 5 102 Melee . | . . . . . . Projectile . | . . . . . . AOE 123 | . . . 16 5 102 Terrain Rammed . | . . . . . . Walls Destroyed . | . . . . . . Machines Disabled . | . . . . . . Actions | -11 -10 -9 -8 -8 -8 --------- Run | Yrd Mat Mat Mat Sto Gar Total 5906 | 40 203 1216 2304 1151 992 Wait 1866 | . . 298 1312 171 85 Move 3297 | 33 174 796 849 763 682 Hop . | . . . . . . Pick Up 63 | 1 6 14 9 21 12 Fast Attach 70 | 6 6 15 21 13 9 Attach 15 | . . 3 5 4 3 Detach 17 | . 4 4 3 4 2 Swap 63 | . . 9 9 21 24 Drop 110 | . 3 28 20 31 28 Fire 319 | . 10 49 76 122 62 Melee . | . . . . . . Ram . | . . . . . . Kick 3 | . . . . . 3 Crush . | . . . . . . Escape Stasis 5 | . . . . . 5 Rewire 78 | . . . . 1 77 Trap . | . . . . . . Miscellaneous . | . . . . . . Route ------- -11/Scrapyard -10/Materials (discovered 2 exits: *Mat / *Min) -9/Materials -8/Materials (discovered 2 exits: [*Fac] / *Sto) -8/Storage -8/Garrison (discovered 1 exit: [*Rec]) History --------- Turn | Location | Event 5 | -11/Scrapyard | Discovered new exit (range 15) 50 | -11/Scrapyard | Entered Materials 172 | -10/Materials | Identified exit to Mines 215 | -10/Materials | Discovered new exit (range 16) 303 | -10/Materials | Entered another Materials area 303 | -9/Materials | Evolved 2 slots: Propulsion x1, Utility x1 324 | -9/Materials | Build established: Mutant 1522 | -9/Materials | Discovered new exit (range 11) 1709 | -9/Materials | Entered another Materials area 1709 | -8/Materials | Evolved 2 slots: Utility x2 2222 | -8/Materials | Identified exit to Storage 2639 | -8/Materials | Discovered new exit (range 13) 3513 | -8/Materials | Lost 3 parts (1n1u1w) 4338 | -8/Materials | Entered Storage 5046 | -8/Storage | Repaired Rocket Launcher 5061 | -8/Storage | Core integrity fell below 50% 5137 | -8/Storage | Destroyed 8 combat bots 5418 | -8/Storage | Build established: Scavenger-Mutant 5767 | -8/Storage | Garrison activated, responded to threat 5802 | -8/Storage | Identified exit to Garrison 5804 | -8/Storage | Entered Garrison 5951 | -8/Garrison | Phase Generator disabled 6008 | -8/Garrison | Triggered checkpoint 6080 | -8/Garrison | Core integrity fell below 20% 6144 | -8/Garrison | Lost 3 parts (1n1u1w) 6184 | -8/Garrison | Rescued a captive Derelict 6185 | -8/Garrison | Rescued a captive Derelict 6215 | -8/Garrison | Learned Recycling security intel 6353 | -8/Garrison | Garrison Relay disabled 6388 | -8/Garrison | Triggered checkpoint 6418 | -8/Garrison | Triggered checkpoint 6684 | -8/Garrison | Triggered checkpoint 6810 | -8/Garrison | Triggered checkpoint 6868 | -8/Garrison | Lost 3 allies 6969 | -8/Garrison | Discovered new exit (range 14) 7172 | -8/Garrison | Triggered checkpoint 7210 | -8/Garrison | Triggered checkpoint 7230 | -8/Garrison | Destroyed by Y-45 Defender with Heavy Assault Rifle Last Messages --------------- 07036_ VPSXC>KBSBLUZFI:BHNG5M::JIDB 07094_ System corrupted: Matter fused (-9). 07118_ System corrupted: Matter fused (-8). 07156_ System corrupted: FCS attempts to trigger Flak Gun. 07156_ System corrupted: Flak Gun misfires. 07156_ Imp 3c destroyed. 07198_ C S|XME6QN,F44S UPZ3E90DK>GWJ 07210_ Beams of light sweep through the air. An alarm sounds. 07210_ Triggered Alarm Trap. 07210_ An alarm sounds. 07218_ B-36 Bruiser Lgt. Armor Plating blown off. 07218_ B-36 Bruiser Unknown Treads blown off. 07218_ B-36 Bruiser Rnf. Ion Engine blown off. 07218_ B-36 Bruiser Unknown Treads blown off. 07218_ Imp 3d destroyed. 07219_ B-36 Bruiser destroyed. 07220_ System corrupted: Substantial component data lost. 07223_ Y-45 Defender destroyed. 07226_ L-31 Rogue destroyed. Map ----- +----------------------------------------------------+ | ?????????????????????????????????????????????????? | | ?????????????????????????????????????????????????? | | ?????????????????????????????????????????????????? | | ????????????????????????????????#######??????????? | | ????????????????????????????????#"""""####???????? | | ????????????????????????????????#" " #???????? | | ????????????????????????????????#" #???##### | | ???????????????????????????????##" " ##### | | ???????????????????????????????"""" """ ?? < | | ?????????????????????????????????# " #????? | | ?????????????????????????????????# #???###^^ | | ?????????????????????????????????# #???# | | ?????????????????????????????????## ######???### | | ??????????????????????????????????# #????????# | | ??????????????????????????????????# #????????### | | ??????????????????????????????????# #??????????# | | ??????????????????????????????????# #??????????# | | ??????????????????????????????????# #######????# | | ??????????????????????????????????# ##[[[[###### | | ????????????????????????#####?????# | | ????????????????????????#] !#?????# * | | ????????????????????????#] !#?????# ##!!!!# #### [ | | ????????????????????????#] !#?????# ####### #??# / | | ????????????????????????#] !#?????# #?????# #??# | | ??????????????# *!######## ##?????# #?????# #??#== | | ??????????# %!*Y=%/=%=@ #??????# #?????# ####[! | | ??????????????#%=/######%###??????# ####### ##==%! | | ???????????????????????#!#????????# ## * ![ % | | ???????????????????????# #????????# ## #####==[= | | ???????????????## ###### #????????# ## %#???###%= | | ??????????# #????????# ######?????#*% | | ???????????????#### #### #????????#!#??????????# | | ???????????????????????# #????????#%#??????????# | | ???????????????????????# #????????#*############ | | ???????????????????????# #????????#/ | | ???????????????????????# ########## ####### #### | | ???????????????????????# ## #?????# #??# | | ???????????????????????# ### ## ### #?????# #??# | | ???????????????????????# #?# ## #?# #?????# #??# | | ???????????????????????# #?# #?# #?????# #??# | | ??????????????????????## ### ### ####### #### | | ??????????????????????# | | ?????????????????????? | | ?????????????????????? | | ?????????????????????## ## ## ############# | | ??????????????????????# ## ## ###?????????? | | ??????????????????????" #?????????? | | ??????????????????????" #?????????? | | ??????????????????????" =####??????? | | ??????????????????????" [= #??????? | +----------------------------------------------------+ Best States ------------- Heat Dissipation 59 Energy Generation 14 Energy Capacity 280 Matter Stores 300 Matter Capacity 500 Sight Range 16 Terrain Scan Range 16 Terrain Scan Density 160 Armor Coverage 375 Resistance: TH 20 Weapon Shielding 33 Evasion (%) 59 Target Analysis 5 Offensive Hacking 20 Item Schematics ----------------- None Robot Schematics ------------------ None Fabricated ------------ Nothing Alien Tech Used ----------------- None Achievements -------------- None Challenges ------------ None Game ------ Seed ReinforcedCargoArchive Manual? 0 Play Time 00:44:26 Cumulative 103.1 hours Start 2024.04.19 @ 08:30:04 End 2024.04.19 @ 09:14:29 Sessions 1 Manual Loads 0 Difficulty Rogue Special Mode None Game No. 211 Rogue 211 Adventurer 0 Explorer 0 Win Type - Total 0 Types 0/0/0/0/0/0/0/0/0 Lore% 31 Gallery% 50 Achievement% 35 Wizard Run 0 Options --------- Layout 0 ASCII 0 Keyboard 1 Movement Numpad Keybinds 0 Fullscreen 2 Font 18/X11 Map View 76x50 Zoom Use 0% Tactical HUD 1 Map Filters NONE Filters NONE Steam 1 RUN: 372bc9bc-3a11-4014-bf8c-b50c68dc40dd